Cogmind - Beta 15 *** ADVENTURER MODE // 2025.09.18 @ 05:25:25 Player: Olexender Result: Destroyed by S-27 Virus with Autogun Performance ------------- Evolutions (3) 1500 Regions Visited (6) 1200 Robots Destroyed (72) 360 Value Destroyed (2629) 2629 Prototype IDs (2) 40 Alien Tech Used (0) 0 Bonus (165) 165 TOTAL SCORE: 5894 Bonus ------- Follower Combat Kills 165 Cogmind --------- Core Integrity 0/700 Matter 270/300 Energy 20/290 System Corruption 4% Temperature Cool (8) Movement Hovering (48) Location -7/Lower Caves Parts ------- > --- POWER (2) -------- Reinforced Deuterium Engine > --- PROPULSION (4) --- Gravmag System Gravmag System Gravmag System Gravmag System > --- UTILITY (4) ------ Large Storage Unit > --- WEAPON (3) ------- (None) > --- INVENTORY (15) --- Improved Cooling System Improved Cooling System High-capacity Matter Pod (200) Improved Terrain Scanner Matter Filter Transmission Jammer Improved Shield Generator Peak State ------------ > --- POWER ------------ Improved Deuterium Engine Improved Deuterium Engine > --- PROPULSION ------- Titanium Leg Titanium Leg Improved Carbon-fiber Leg Improved Carbon-fiber Leg > --- UTILITY ---------- Improved Cooling System Large Storage Unit Transmission Jammer Improved Medium Armor Plating > --- WEAPON ----------- Plasma Cannon Advanced Assault Cannon Advanced Assault Cannon > --- INVENTORY -------- Deuterium Engine Titanium Leg Titanium Leg Aerolev Unit Aerolev Unit Gravmag System Gravmag System Gravmag System Improved Cooling System Improved Cooling System High-capacity Matter Pod Improved Terrain Scanner Matter Filter Improved Shield Generator Beam Cannon [Rating: 52] Favorites ----------- Power Improved Deuterium Engine Engine Improved Deuterium Engine Power Core Light Nuclear Core Propulsion Titanium Leg Leg Titanium Leg Hover Unit Gravmag System Utility Improved Medium Armor Plating Device Improved Cooling System Storage Large Storage Unit Protection Improved Medium Armor Plating Weapon Advanced Assault Cannon Energy Gun Small Laser Energy Cannon Beam Cannon Ballistic Gun Assault Rifle Ballistic Cannon Advanced Assault Cannon Build | -11 -10 -10 -8 -8 -7 -7 ------- Run | Yrd Mat Sub Mat Sto Fac Low Slots Evolved 6 | . . . 4 . 2 . Power 1 | . . . 1 . . . Propulsion 2 | . . . 1 . 1 . Utility 2 | . . . 1 . 1 . Weapon 1 | . . . 1 . . . Parts Attached 53 | 6 1 1 5 10 21 9 Power 8 | 1 . . 1 1 4 1 Engine 7 | 1 . . . 1 4 1 Core 1 | . . . 1 . . . Reactor . | . . . . . . . Propulsion 23 | 2 . . . 6 9 6 Treads . | . . . . . . . Leg 17 | 2 . . . 6 8 1 Wheel . | . . . . . . . Hover 6 | . . . . . 1 5 Flight . | . . . . . . . Utility 10 | 1 . 1 2 1 4 1 Device 4 | . . . 1 . 2 1 Storage 3 | 1 . . . 1 1 . Processor . | . . . . . . . Hackware . | . . . . . . . Protection 3 | . . 1 1 . 1 . Artifact . | . . . . . . . Weapon 12 | 2 1 . 2 2 4 1 Energy Gun 2 | 1 . . . . . 1 Energy Cannon 4 | . 1 . . 1 2 . Ballistic Gun 1 | 1 . . . . . . Ballistic Cannon 5 | . . . 2 1 2 . Launcher . | . . . . . . . Special Weapon . | . . . . . . . Impact Weapon . | . . . . . . . Slashing Weapon . | . . . . . . . Piercing Weapon . | . . . . . . . Special Melee Weapon . | . . . . . . . Unidentified Prototypes 2 | . . . . 1 1 . Parts Lost 19 | . . . . 4 1 14 Power 2 | . . . . . . 2 Propulsion 7 | . . . . 2 . 5 Utility 3 | . . . . . . 3 Weapon 7 | . . . . 2 1 4 Highest Loss Streak 14 | . . . . 2 1 14 To Critical Strikes 1 | . . . . . . 1 Average Backups 10 | 2 3 7 7 8 13 14 Power . | 1 1 2 1 1 . . Propulsion 3 | . . . . 1 6 6 Utility 4 | . 1 3 2 2 4 7 Weapon 2 | . . 2 3 3 1 . Tool/Special . | . . . . . . . Unused Backups 9 | . . . 1 . 2 6 Power . | . . . . . . . Propulsion 2 | . . . . . 2 . Utility 6 | . . . . . . 6 Weapon 1 | . . . 1 . . . Tool/Special . | . . . . . . . Average Slot Usage (%) 92 | . 85 96 87 91 99 85 Engine 15 | . 14 14 9 17 15 13 Leg 24 | . 28 28 18 19 29 23 Device 10 | . . . 8 8 14 14 Storage 8 | . 14 14 9 9 7 7 Protection 7 | . . 10 9 9 7 6 Energy Cannon 8 | . 1 14 9 9 8 7 Ballistic Gun 1 | . 14 14 1 . . . Ballistic Cannon 12 | . . . 14 18 12 8 Peak Build Rating 52 | 6 7 11 24 30 52 51 Average Rating 34 | 3 6 10 22 25 45 44 On Entrance 18 | . 6 7 11 24 30 51 Naked Turns . | . . . . . . . Heaviest Build 69 | 13 15 22 38 46 69 69 Greatest Support 70 | 20 20 20 20 40 70 70 Greatest Overweight (x) 13 | . . 1 1 13 1 2 Average Overweight (x) . | . . . 1 1 . . Largest Inventory Capacity 15 | 8 8 8 8 10 15 15 Average Capacity 11 | 6 8 8 8 8 14 15 Most Carried 15 | 5 7 8 8 10 15 15 Average Carried 10 | 2 3 7 7 8 13 14 Final Capacity 15 | 8 8 8 8 10 15 15 Final Carried 14 | 1 7 8 8 10 14 7 Class Distribution -------------------- 48% | Tank 21% | Mutant 19% | Commander-Tank 8% | Scavenger-Tank Dominant Class ---------------- Mutant | -10/Materials Mutant | -10/Subcaves Tank | -8/Materials Tank | -8/Storage Commander-Tank | -7/Factory Mutant | -7/Lower Caves Resources | -11 -10 -10 -8 -8 -7 -7 ----------- Run | Yrd Mat Sub Mat Sto Fac Low Matter Collected 2299 | 222 83 20 69 852 661 392 Remotely . | . . . . . . . Salvage Created 2455 | . 185 52 61 1186 526 445 Parts 115 | . 8 6 3 65 19 14 Haulers Intercepted 1 | . . . . 1 . . Recyclers Shooed 2 | . . . . 2 . . Parts Field Recycled . | . . . . . . . Retrieved Matter . | . . . . . . . Parts Self-Destructed 13 | . . . . . . 13 Prevented 1 | . . . . . . 1 Kills | -11 -10 -10 -8 -8 -7 -7 ------- Run | Yrd Mat Sub Mat Sto Fac Low Combat Hostiles Destroyed 51 | . 4 1 1 27 8 10 Guns 4 | . 4 . . . . . Cannons 44 | . . 1 1 27 7 8 AOE 1 | . . . . . 1 . Classes Destroyed 13 | . 1 1 2 7 1 1 Worker 1 | . . . . . 1 . Hauler 1 | . . . . 1 . . Recycler 3 | . . . . 3 . . Mechanic 1 | . . . . 1 . . Operator 3 | . . . . 3 . . Watcher 5 | . . . 1 2 2 . Swarmer 6 | . . . . 4 1 1 Grunt 33 | . 4 . . 13 10 6 Brawler 2 | . . . . . . 2 Duelist 1 | . . . . 1 . . Sentry 11 | . . . 1 6 3 1 Hunter 4 | . . . . 3 1 . Subdweller 1 | . . 1 . . . . Best Kill Streak 6 | . 2 1 1 4 2 6 Combat Bots Only 6 | . 2 1 1 4 2 6 Max Kills in Single Turn 6 | . 1 1 1 2 6 1 Gunslinging . | . . . . . . . Exploded 1 | . . . . . 1 . Melee . | . . . . . . . Uniques/NPCs Destroyed . | . . . . . . . Combat | -11 -10 -10 -8 -8 -7 -7 -------- Run | Yrd Mat Sub Mat Sto Fac Low Hostile Shots Fired 534 | . 22 7 2 149 105 249 Missed 174 | . 8 3 1 45 41 76 Hits 360 | . 14 4 1 104 64 173 Melee 36 | . . . . 1 . 35 Projectile 324 | . 14 4 1 103 64 138 Critical Strikes 14 | . 1 . . 3 . 10 Damage Taken 4381 | . 146 59 14 1110 793 2259 Core 812 | . 11 . 14 77 25 685 Absorbed by Shields 296 | . . . . . . 296 Ignored by Resistances 1378 | . 45 28 4 330 241 730 Regen/Repaired (Parts) 17 | . . . . 17 . . Core Remaining (%) 92 | 100 . 95 . 83 . . Volleys Fired 148 | . 15 6 3 68 28 28 Largest 3 | . 2 2 3 3 3 3 Hottest 180 | . 60 80 140 140 160 180 Shots Fired 392 | . 30 12 9 195 80 66 Gun 36 | . 30 6 . . . . Cannon 356 | . . 6 9 195 80 66 Launcher . | . . . . . . . Special . | . . . . . . . Kinetic 237 | . 15 6 6 128 51 31 Thermal 155 | . 15 6 3 67 29 35 Explosive . | . . . . . . . Electromagnetic . | . . . . . . . Robot Hit Streak 20 | . 10 20 5 15 11 15 Robot Miss Streak 4 | . 1 . 1 4 3 2 Penetration Max . | . . . . . . . Secondary Targets . | . . . . . . . Shots Hit Robots 259 | . 26 11 7 118 52 45 Core Hits 110 | . 10 2 2 52 26 18 Critical Kills 2 | . . . . . . 2 Critical Parts Destroyed 2 | . 2 . . . . . Critical Strikes 13 | . 2 . 1 4 3 3 Meltdown 2 | . . . . . . 2 Destroy 2 | . 2 . . . . . Blast 9 | . . . 1 4 3 1 Melee Attacks . | . . . . . . . Impact . | . . . . . . . Slashing . | . . . . . . . Piercing . | . . . . . . . Sneak Attacks . | . . . . . . . Combat Hostiles . | . . . . . . . Follow-up Attacks . | . . . . . . . Damage Inflicted 6999 | . 317 170 149 3138 2021 1204 Guns 380 | . 317 63 . . . . Cannons 5701 | . . 107 149 2915 1328 1202 Explosions 916 | . . . . 223 693 . Melee . | . . . . . . . Ramming 2 | . . . . . . 2 Kinetic 4047 | . 170 63 131 2081 954 648 Thermal 2114 | . 147 107 18 834 454 554 Explosive 836 | . . . . 223 613 . Electromagnetic . | . . . . . . . Impact . | . . . . . . . Slashing . | . . . . . . . Piercing . | . . . . . . . Highest Corruption 4 | . . . . . . 4 Average Corruption 4 | . . . . . . 4 Corruption Purged . | . . . . . . . Corruption Blocked . | . . . . . . . Effects 1 | . . . . . . 1 Data Loss (minor) 1 | . . . . . . 1 Overload Shots . | . . . . . . . Overflow Damage 188 | . . . . 108 80 . Projectiles 130 | . . . . 99 31 . Explosions 58 | . . . . 9 49 . Melee . | . . . . . . . Knockbacks 39 | . . . 2 17 9 11 Impact . | . . . . . . . Kinetic 39 | . . . 2 17 9 11 Secondary . | . . . . . . . Self-Inflicted Damage 307 | . . . . . 306 1 Shots 5 | . . . . . 5 . Rammed 1 | . . . . . . 1 Targets Rammed 1 | . . . . . . 1 Kicked . | . . . . . . . Crushed . | . . . . . . . Highest Temperature 277 | . 48 . 45 277 114 256 Average Temperature 69 | . 24 . 26 84 27 73 Received Heat Transfer 1392 | . 126 . . 531 120 615 Effects 6 | . . . . 6 . . Energy Bleed 1 | . . . . 1 . . Interference 5 | . . . . 5 . . Siege Activations . | . . . . . . . Martial Activations . | . . . . . . . Shielding Activations . | . . . . . . . Robots Disrupted . | . . . . . . . Combat Hostiles . | . . . . . . . Robots Corrupted . | . . . . . . . Combat Hostiles . | . . . . . . . Parts Fried . | . . . . . . . Impact Corruptions . | . . . . . . . Robots Melted 2 | . . . . . . 2 Combat Hostiles 2 | . . . . . . 2 Parts Melted 4 | . 1 . . 1 . 2 Heat Transferred 4312 | . 350 222 37 1776 818 1109 Parts Sabotaged . | . . . . . . . Parts Stolen 2 | . . . . . . 2 Parts Stripped . | . . . . . . . Power Chain Reactions . | . . . . . . . Alert | -11 -10 -10 -8 -8 -7 -7 ------- Run | Yrd Mat Sub Mat Sto Fac Low Maximum Alert Level 1 | . . . . 1 1 . Low Security (%) 93 | 100 100 . 100 88 96 . Level 1 6 | . . . . 11 3 . Level 2 . | . . . . . . . Level 3 . | . . . . . . . Level 4 . | . . . . . . . Level 5 . | . . . . . . . High Security . | . . . . . . . Max Security . | . . . . . . . Peak Influence 236 | . 61 . 30 236 221 . Initial 13 | . . . . 3 13 . Average 63 | . 20 . 5 81 63 . Influence Increases 1854 | . 101 . 38 853 637 225 Destroy 0b10 Robot/C 1100 | . 80 . 20 540 260 200 Destroy 0b10 Robot/NC 75 | . . . 5 50 20 . Destroy Leader 274 | . 20 . 12 146 86 10 Allied During Kill 67 | . . . . . 67 . Trap Triggered on 0b10 10 | . . . . 10 . . Successful Hack 15 | . . . . 11 4 . Disable Machine 171 | . . . . 54 117 . Destroy Structure 127 | . 1 . 1 42 83 . Lose Combat Pursuer 15 | . . . . . . 15 Influence Decreases 1854 | . 60 41 27 829 635 262 Entered New Map 70 | . . 23 . 8 22 17 Time Decay 1356 | . 60 18 27 543 593 115 Lost Part 180 | . . . . 40 10 130 Lost Ally 10 | . . . . . 10 . Purge Threat 238 | . . . . 238 . . Squads Dispatched 9 | . . . . 5 4 . Investigation 1 | . . . . 1 . . Extermination 3 | . . . . . 3 . Reinforcement 5 | . . . . 4 1 . Assault . | . . . . . . . Garrison . | . . . . . . . Intercept . | . . . . . . . Searches Triggered . | . . . . . . . Construction Impeded 1 | . . . . 1 . . Haulers Reinforced . | . . . . . . . Active Scanning Responses . | . . . . . . . Cargo Convoy Interrupts . | . . . . . . . Stealth | -11 -10 -10 -8 -8 -7 -7 --------- Run | Yrd Mat Sub Mat Sto Fac Low Distress Signals 2 | . . . . 2 . . Communications Jammed 2 | . . . . . 1 1 Distress Signals 1 | . . . . . . 1 Times Spotted 78 | . 5 1 3 33 16 20 Peak Tracking Total 10 | . 2 1 2 4 3 10 Tactical Retreats 1 | . . . . . . 1 Traps | -11 -10 -10 -8 -8 -7 -7 ------- Run | Yrd Mat Sub Mat Sto Fac Low Traps Triggered 2 | . . . . 1 1 . Indirectly . | . . . . . . . Trap Hack Attempts . | . . . . . . . Triggered . | . . . . . . . Disarmed . | . . . . . . . Reprogrammed 6 | . . . . 6 . . Reused 1 | . . . . 1 . . Traps Extracted . | . . . . . . . Installed . | . . . . . . . Triggered 1 | . . . . 1 . . Machines | -11 -10 -10 -8 -8 -7 -7 ---------- Run | Yrd Mat Sub Mat Sto Fac Low Machines Disabled 19 | . . . . 6 13 . Max in Single Turn 5 | . . . . 2 5 . Garrison Access 3 | . . . . 1 2 . Machines Repaired . | . . . . . . . Machines Dismantled . | . . . . . . . Machines Sabotaged . | . . . . . . . Overloaded Fab Kills . | . . . . . . . Hacking | -11 -10 -10 -8 -8 -7 -7 --------- Run | Yrd Mat Sub Mat Sto Fac Low Machines Accessed 21 | . . . 3 11 7 . Terminals 12 | . . . 1 7 4 . Fabricators 1 | . . . . . 1 . Repair Stations 1 | . . . . 1 . . Recycling Units 3 | . . . 1 2 . . Scanalyzers . | . . . . . . . Garrison Access 4 | . . . 1 1 2 . Total Hacks 51 | . . . 10 27 14 . Successful 40 | . . . 6 25 9 . Failed 11 | . . . 4 2 5 . Catastrophic 1 | . . . 1 . . . Database Lockouts . | . . . . . . . Manual . | . . . . . . . Terminals 36 | . . . 6 21 9 . Fabricators 1 | . . . . . 1 . Repair Stations 2 | . . . . 2 . . Recycling Units 4 | . . . 1 3 . . Scanalyzers . | . . . . . . . Garrison Access 8 | . . . 3 1 4 . Terminal Hacks 30 | . . . 5 19 6 . Record 16 | . . . 3 8 5 . Open Door 1 | . . . . 1 . . Emergency Access Points 2 | . . . . 2 . . Alert Level 4 | . . . 1 2 1 . Unreport Threat 2 | . . . . 2 . . Locate Traps 1 | . . . . 1 . . Reprogram Traps 1 | . . . . 1 . . Maintenance Status 1 | . . . 1 . . . Investigation Status 1 | . . . . 1 . . Hauler Manifests 1 | . . . . 1 . . Fabricator Hacks 1 | . . . . . 1 . Network Status 1 | . . . . . 1 . Repair Station Hacks 2 | . . . . 2 . . Scan Component 1 | . . . . 1 . . Repair 1 | . . . . 1 . . Recycling Unit Hacks 4 | . . . 1 3 . . Report Inventory 3 | . . . 1 2 . . Retrieve Components 1 | . . . . 1 . . Scanalyzer . | . . . . . . . Garrison Access Hacks 3 | . . . . 1 2 . Seal Access 3 | . . . . 1 2 . Unauthorized Hacks . | . . . . . . . Terminals . | . . . . . . . Fabricators . | . . . . . . . Repair Stations . | . . . . . . . Recycling Units . | . . . . . . . Scanalyzers . | . . . . . . . Garrison Access . | . . . . . . . Data Cores Recovered . | . . . . . . . Used . | . . . . . . . Hacking Detections 13 | . . . 2 7 4 . Full Trace Events 2 | . . . 1 1 . . Feedback Events . | . . . . . . . Feedback Blocked . | . . . . . . . Robot Schematics Acquired . | . . . . . . . Robots Built . | . . . . . . . Authchips . | . . . . . . . Time . | . . . . . . . Total Robot Build Rating . | . . . . . . . Part Schematics Acquired . | . . . . . . . Parts Built . | . . . . . . . Authchips . | . . . . . . . Time . | . . . . . . . Total Part Build Rating . | . . . . . . . Parts Repaired 1 | . . . . 1 . . Time 38 | . . . . 38 . . Parts Recycled . | . . . . . . . Recycled Matter . | . . . . . . . Retrieved Matter . | . . . . . . . Retrieved Components 9 | . . . . 9 . . Parts Scanalyzed . | . . . . . . . Part Schematics Acquired . | . . . . . . . Parts Damaged . | . . . . . . . Bothacking | -11 -10 -10 -8 -8 -7 -7 ------------ Run | Yrd Mat Sub Mat Sto Fac Low Used RIF Installer . | . . . . . . . Robots Hacked . | . . . . . . . Non-combat . | . . . . . . . Combat . | . . . . . . . Robot Hacks Applied . | . . . . . . . Relay Couplers Released . | . . . . . . . Fabnet Peak Effective % . | . . . . . . . Robots Rewired . | . . . . . . . Allies Hacked . | . . . . . . . Hacks Repelled . | . . . . . . . Allies | -11 -10 -10 -8 -8 -7 -7 -------- Run | Yrd Mat Sub Mat Sto Fac Low Total Allies 10 | . . . . 10 . . Largest Group 10 | . . . . 10 10 . Highest-Rated Group 173 | . . . . 173 173 . Highest-Rated Ally 29 | . . . . 29 29 . Total Orders . | . . . . . . . Ally Attacks 34 | . . . . . 34 . Total Damage 360 | . . . . . 360 . Kills 6 | . . . . . 6 . Allies Corrupted . | . . . . . . . Allies Melted . | . . . . . . . Intel | -11 -10 -10 -8 -8 -7 -7 ------- Run | Yrd Mat Sub Mat Sto Fac Low Active Infowar (turns) 2022 | . . . . . 1388 634 Jamming 2022 | . . . . . 1388 634 Robot Analysis Total . | . . . . . . . Derelict Logs Recovered 2 | . . . . . . 2 Drone Launches . | . . . . . . . Drone Recoveries . | . . . . . . . Exploration | -11 -10 -10 -8 -8 -7 -7 ------------- Run | Yrd Mat Sub Mat Sto Fac Low Turns Passed 4276 | 40 200 190 217 1312 1463 854 Spaces Moved 2210 | 34 113 103 102 417 993 448 Core 19 | 17 . . . 2 . . Treads . | . . . . . . . Legs 2168 | 17 113 103 102 415 993 425 Wheels . | . . . . . . . Hover 23 | . . . . . . 23 Flight . | . . . . . . . Fastest Speed 48 | 50 120 120 190 190 120 48 Average Speed 161 | 85 120 164 190 240 129 165 Slowest Speed 700 | 120 120 190 190 700 190 200 Overloaded Moves . | . . . . . . . Propulsion Burnouts . | . . . . . . . Robots Hopped . | . . . . . . . Potential Cave-ins . | . . . . . . . Cave-ins Triggered . | . . . . . . . Exploration Rate (%) 30 | 3 21 5 13 81 34 58 Regions Visited 6 Branch Regions 3 Pre-discovered Areas 1 | . . 1 . . . . Known Exits Taken . | . . . . . . . Unknown Exits Taken 6 | 1 1 1 1 1 1 . Scrap Searched 10 | . . 3 . . . 7 Spaces Dug . | . . . . . . . Terrain Destroyed 142 | . . . . 42 94 6 Melee . | . . . . . . . Projectile 42 | . . . . 30 6 6 AOE 100 | . . . . 12 88 . Terrain Rammed . | . . . . . . . Walls Destroyed . | . . . . . . . Machines Disabled . | . . . . . . . Actions | -11 -10 -10 -8 -8 -7 -7 --------- Run | Yrd Mat Sub Mat Sto Fac Low Total 2605 | 44 147 111 119 576 1105 503 Wait 113 | . 11 1 1 69 19 12 Move 2204 | 33 112 102 101 416 992 448 Hop . | . . . . . . . Pick Up 47 | 5 7 1 6 8 17 3 Fast Attach 9 | 2 . 1 . 3 3 . Attach 25 | 4 . . 3 4 4 10 Detach 1 | . . . . . 1 . Swap 30 | . 1 . 2 4 22 1 Drop 27 | . 1 . 3 4 19 . Fire 148 | . 15 6 3 68 28 28 Melee . | . . . . . . . Ram 1 | . . . . . . 1 Kick . | . . . . . . . Crush . | . . . . . . . Escape Stasis . | . . . . . . . Rewire . | . . . . . . . Trap . | . . . . . . . Miscellaneous . | . . . . . . . Route ------- -11/Scrapyard -10/Materials -10/Subcaves -8/Materials -8/Storage -7/Factory -7/Lower Caves History --------- Turn | Location | Event 3 | -11/Scrapyard | Discovered new exit (range 15) 41 | -11/Scrapyard | Entered Materials 231 | -10/Materials | Discovered new exit (range 9) 241 | -10/Materials | Entered Subcaves 308 | -10/Subcaves | Build established: Mutant 414 | -10/Subcaves | Discovered new exit (range 9) 417 | -10/Subcaves | Learned location of Zion (-6) 417 | -10/Subcaves | Met a Zionite searching for "candidates" 431 | -10/Subcaves | Entered Materials 431 | -8/Materials | Evolved 4 slots: Power x1, Propulsion x1, Utility x1, Weapon x1 589 | -8/Materials | Discovered new exit (range 15) 648 | -8/Materials | Entered Storage 770 | -8/Storage | Build established: Tank 843 | -8/Storage | Repaired Imp. Heat Sink 1848 | -8/Storage | Discovered new exit (range 16) 1870 | -8/Storage | Build established: Scavenger-Tank 1928 | -8/Storage | Assisted by bots powering up and referring to "LRC-V3" 1960 | -8/Storage | Entered Factory 1960 | -7/Factory | Accompanied by 10 allies 1960 | -7/Factory | Evolved 2 slots: Propulsion x1, Utility x1 2237 | -7/Factory | Build established: Commander-Tank 2863 | -7/Factory | Murdered 7 allies 3147 | -7/Factory | Build established: Tank 3404 | -7/Factory | Discovered new exit (range 16) 3423 | -7/Factory | Entered Lower Caves 3862 | -7/Lower Caves | Learned Factory terminal intel 3905 | -7/Lower Caves | Learned Factory terminal intel 3916 | -7/Lower Caves | Build established: Mutant 4167 | -7/Lower Caves | Attracted the attention of an 0b10 checkpoint 4190 | -7/Lower Caves | Attracted the attention of an 0b10 outpost 4241 | -7/Lower Caves | Core integrity fell below 50% 4252 | -7/Lower Caves | Core integrity fell below 20% 4277 | -7/Lower Caves | Destroyed by S-27 Virus with Autogun Last Messages --------------- 04234_ Penetrated by Slug. 04236_ Particle Gun destroyed. 04236_ Acquired 8 matter. 04237_ Penetrated by Slug. 04237_ Titanium Leg destroyed. 04239_ Acquired 10 matter. 04240_ Microactuators fries itself beyond repair. 04241_ Critical hit (Burn: +37). 04242_ System corrupted: Component data lost. 04242_ Aerolev Unit severed. 04244_ Acquired 10 matter. 04244_ Knocked back. 04247_ Slammed into B-48 Gladiator. 04249_ Acquired Rnf. Deuterium Engine. 04251_ Penetrated by Slug. 04252_ Knocked back. 04253_ Aerolev Unit destroyed. 04256_ Acquired 10 matter. 04262_ Slug penetrates Wall. Map ----- +----------------------------------------------------+ | ?????????????????????# ######### #????## | | ?????????????????????# ## ###??# | | ?????????????????????# #### | | ?????????????????????####### "" | | ???????????????????????????# "" " | | ????????????????####????#### """ " " ###### | | ????????????????# ##??# """ #????## | | ??????????????### ??# "" "" #?????# | | ??????????????# #?# " """" #?????## | | ?????????????? ## "" #??????? | | ????????????????????# #??????? | | ????????????????????## ####### #??????# | | ?????????????????????## ##?????????????# | | ???????????????????#### #????????????# | | ??????????????????## ## #??????# | | ?????????????????## ## ### #????# | | ????????????????## ### ##?## #????####### | | ???????????????## #?# ##???# #?????????# | | ???????????????# #### ##???# #?????????#? | | ???????????????# #?# ##??? #??????????? | | ????????????????# %#?## #??? ##??????????? | | ???????????????## % %#### ###?????##???????????? | | ?????????????### % % ## #????????????????????? | | ?????????????# ###% % # #?????### ???????????? | | ????????????# ##?# [% #????? ???????????? | | ???????????# ##??# @ ##???? ???????????? | | ???????????## ##??## #???? ???????????? | | ????????????####???# ##???# #???????????? | | ???????????????????# ##### #???????????? | | ???????????????????# ## ## #???????????? | | ???????????????????# ## ### ## #???????????? | | ??????????????????## ##???## #???????????? | | ?????????????????## s#??#??# #????????##?? | | ????????????????## ##?# ?# #??????? #?? | | ????????????????# ### l ### ## #????? #?? | | ????????????????# ##?## b #???? % + ? | | ????????????????# #???## #### %#### + ? | | ????????????????# #????### g###" % #?? | | ????????????????# #????# " % %% " #????? | | ????????????????#####????### %% % # #????? | | ???????????????????????????#######= #??????? | | ????????????????????????????????# #??????? | | ??????????????????????????????? % " #????? | | ?????????????????????????????# " "# #???? | | ?????????????????????????????###############?#???? | | ?????????????????????????????????????????????????? | | ?????????????????????????????????????????????????? | | ?????????????????????????????????????????????????? | | ?????????????????????????????????????????????????? | | ?????????????????????????????????????????????????? | +----------------------------------------------------+ Best States ------------- Heat Dissipation 61 Energy Generation 27 Energy Capacity 480 Matter Stores 300 Matter Capacity 300 Sight Range 16 Terrain Scan Density 10 Jamming Range 12 Armor Coverage 450 Resistance: KI 30 Resistance: TH 20 Resistance: EX 20 Resistance: EM 20 Resistance: I 20 Resistance: S 20 Resistance: P 20 Evasion (%) 55 Offensive Hacking 10 Item Schematics ----------------- None Robot Schematics ------------------ None Fabricated ------------ Nothing Repaired ---------- Imp. Heat Sink | 57% | -8/Storage Alien Tech Used ----------------- None Achievements -------------- None Challenges ------------ None Game ------ Seed NullJunkLeg Manual? 0 Play Time 00:49:41 Cumulative 333.4 hours Start 2025.09.14 @ 22:00:53 End 2025.09.18 @ 05:25:25 Sessions 5 Manual Loads 0 Difficulty Adventurer Special Mode None Game No. 269 Rogue 0 Adventurer 206 Explorer 63 Win Type - Total 0 Types 0/0/0/0/0/0/0/0/0/0 Lore% 54 Gallery% 59 Achievement% 52 Wizard Run 0 Options --------- Layout 1 ASCII 0 Keyboard 0 Movement Mouse Keybinds 0 Fullscreen 2 Font 32/SmallcapsGlow Map View 50x35 Zoom Use 0% Tactical HUD 1 Map Filters NONE Filters NONE Steam 1 RUN: 614de5bb-a9b8-4a42-b361-4c2f5c1325be